[Event "Early-Titled-Tuesday-Blitz-February-27-2024"]
[Site "Chess.com"]
[Date "2024.02.27"]
[Round "2"]
[White "rcmz"]
[Black "andrzej"]
[Result "0-1"]
[WhiteElo "2195"]
[BlackElo "2488"]
[TimeControl "180+1"]
[EndTime "8:18:04 PST"]
[Termination "andrzej won by resignation"]

1. b4 {[%clk 0:03:00.9]} 1... e5 {[%clk 0:02:56.8]} 2. Bb2 {[%clk 0:03:00.2]}
2... Bxb4 {[%clk 0:02:56.3]} 3. Bxe5 {[%clk 0:03:00.1]} 3... Nf6 {[%clk
0:02:56.3]} 4. c4 {[%clk 0:03:00.2]} 4... O-O {[%clk 0:02:54.5]} 5. Nf3 {[%clk
0:03:00]} 5... Re8 {[%clk 0:02:51.8]} 6. e3 {[%clk 0:02:59.6]} 6... Nc6 {[%clk
0:02:51.6]} 7. Bb2 {[%clk 0:02:59]} 7... d5 {[%clk 0:02:51.6]} 8. cxd5 {[%clk
0:02:58.7]} 8... Nxd5 {[%clk 0:02:48.5]} 9. Be2 {[%clk 0:02:59.6]} 9... Bf5
{[%clk 0:02:47.4]} 10. O-O {[%clk 0:02:56.7]} 10... Qd7 {[%clk 0:02:47.2]} 11.
d4 {[%clk 0:02:55.9]} 11... Bd6 {[%clk 0:02:44.6]} 12. a3 {[%clk 0:02:53.5]}
12... Rad8 {[%clk 0:02:36.3]} 13. Nbd2 {[%clk 0:02:41.7]} 13... Qe7 {[%clk
0:02:24]} 14. Nc4 {[%clk 0:02:36.3]} 14... h5 {[%clk 0:02:09.2]} 15. h3 {[%clk
0:02:32.7]} 15... h4 {[%clk 0:02:05.2]} 16. Kh1 {[%clk 0:02:12]} 16... Nf4
{[%clk 0:02:01.3]} 17. Ng1 {[%clk 0:01:47.6]} 17... Nxe2 {[%clk 0:01:48.6]} 18.
Qxe2 {[%clk 0:01:45.6]} 18... Qg5 {[%clk 0:01:48.2]} 19. Nf3 {[%clk 0:01:38]}
19... Qh5 {[%clk 0:01:48.1]} 20. Rfe1 {[%clk 0:01:34.4]} 20... Be4 {[%clk
0:01:44.2]} 21. Ncd2 {[%clk 0:01:32.5]} 21... Bh7 {[%clk 0:01:37.3]} 22. Ng1
{[%clk 0:01:26.7]} 22... Qg5 {[%clk 0:01:31.9]} 23. Ngf3 {[%clk 0:01:24.8]}
23... Qh5 {[%clk 0:01:31.5]} 24. Ng1 {[%clk 0:01:24]} 24... Qg5 {[%clk
0:01:31.7]} 25. Ngf3 {[%clk 0:01:23.4]} 25... Qf6 {[%clk 0:01:32.3]} 26. Qb5
{[%clk 0:01:17.5]} 26... Ne7 {[%clk 0:01:18]} 27. d5 {[%clk 0:01:00.3]} 27...
Qh6 {[%clk 0:01:12.1]} 28. Qc4 {[%clk 0:00:47.8]} 28... Ng6 {[%clk 0:01:02.1]}
29. Qc3 {[%clk 0:00:42]} 29... Ne5 {[%clk 0:00:58.8]} 30. Qd4 {[%clk 0:00:35.1]}
30... Nxf3 {[%clk 0:00:52.8]} 31. Nxf3 {[%clk 0:00:33.8]} 31... Be4 {[%clk
0:00:53.3]} 32. Nxh4 {[%clk 0:00:23.4]} 32... Be5 {[%clk 0:00:46.6]} 33. Qxe4
{[%clk 0:00:20.8]} 33... Bxb2 {[%clk 0:00:46.6]} 34. Qb4 {[%clk 0:00:15]} 34...
Bxa1 {[%clk 0:00:46.6]} 35. Rxa1 {[%clk 0:00:14.8]} 35... Rxd5 {[%clk
0:00:45.2]} 36. Nf3 {[%clk 0:00:14.2]} 36... Rh5 {[%clk 0:00:43.1]} 37. Kg1
{[%clk 0:00:13.2]} 37... b6 {[%clk 0:00:42.8]} 38. Qc4 {[%clk 0:00:11.6]} 38...
c5 {[%clk 0:00:41]} 39. Rd1 {[%clk 0:00:11.3]} 39... Qf6 {[%clk 0:00:32.7]} 40.
Qb5 {[%clk 0:00:11.1]} 40... Rd8 {[%clk 0:00:32.2]} 41. Rxd8+ {[%clk 0:00:09.5]}
41... Qxd8 {[%clk 0:00:33.1]} 42. Qc6 {[%clk 0:00:09]} 42... Rd5 {[%clk
0:00:32.3]} 43. Kh2 {[%clk 0:00:08.7]} 43... Qd7 {[%clk 0:00:31.4]} 44. Qa8+
{[%clk 0:00:07.4]} 44... Kh7 {[%clk 0:00:31.9]} 45. g3 {[%clk 0:00:06.8]} 45...
f6 {[%clk 0:00:31.4]} 46. Kg2 {[%clk 0:00:06.8]} 46... b5 {[%clk 0:00:29.2]} 47.
Nh4 {[%clk 0:00:06.6]} 47... b4 {[%clk 0:00:28.3]} 48. axb4 {[%clk 0:00:05.6]}
48... cxb4 {[%clk 0:00:29.2]} 49. Qb8 {[%clk 0:00:05.6]} 49... Rb5 {[%clk
0:00:26.1]} 50. Qf4 {[%clk 0:00:05.6]} 50... Qb7+ {[%clk 0:00:26.2]} 51. Nf3
{[%clk 0:00:04.5]} 51... b3 {[%clk 0:00:25.7]} 52. Qh4+ {[%clk 0:00:04.4]} 52...
Kg8 {[%clk 0:00:25.6]} 53. e4 {[%clk 0:00:05.3]} 53... b2 {[%clk 0:00:24.8]} 54.
Qg4 {[%clk 0:00:04.8]} 54... b1=Q {[%clk 0:00:23]} 55. Qe6+ {[%clk 0:00:04.8]}
55... Qf7 {[%clk 0:00:23.2]} 56. Qc8+ {[%clk 0:00:03.7]} 56... Qf8 {[%clk
0:00:22.8]} 57. Qe6+ {[%clk 0:00:03.7]} 57... Kh8 {[%clk 0:00:22.1]} 58. Qf5
{[%clk 0:00:02.7]} 58... Rxf5 {[%clk 0:00:15.9]} 0-1

[Event "Early-Titled-Tuesday-Blitz-February-27-2024"]
[Site "Chess.com"]
[Date "2024.02.27"]
[Round "2"]
[White "Pliukha_Mikhail"]
[Black "biostatistician"]
[Result "0-1"]
[WhiteElo "2746"]
[BlackElo "2554"]
[TimeControl "180+1"]
[EndTime "8:18:08 PST"]
[Termination "biostatistician won by checkmate"]

1. e4 {[%clk 0:03:00.9]} 1... e5 {[%clk 0:02:59.9]} 2. Nf3 {[%clk 0:03:00.9]}
2... Nc6 {[%clk 0:03:00.2]} 3. d4 {[%clk 0:03:01.8]} 3... exd4 {[%clk
0:03:00.1]} 4. Bc4 {[%clk 0:03:02.7]} 4... Nf6 {[%clk 0:02:59.1]} 5. O-O {[%clk
0:03:02.3]} 5... Nxe4 {[%clk 0:02:59]} 6. Re1 {[%clk 0:03:01.3]} 6... d5 {[%clk
0:02:59.3]} 7. Nc3 {[%clk 0:03:02.2]} 7... dxc3 {[%clk 0:02:56.7]} 8. Bxd5
{[%clk 0:03:01.1]} 8... Be6 {[%clk 0:02:56.9]} 9. Bxe4 {[%clk 0:03:01.4]} 9...
Qxd1 {[%clk 0:02:51.2]} 10. Rxd1 {[%clk 0:03:02.3]} 10... Bb4 {[%clk 0:02:43.2]}
11. bxc3 {[%clk 0:03:02]} 11... Bxc3 {[%clk 0:02:43.2]} 12. Rb1 {[%clk
0:03:02.9]} 12... O-O {[%clk 0:02:38.3]} 13. Rxb7 {[%clk 0:03:01.5]} 13... Rad8
{[%clk 0:02:30.1]} 14. Bd3 {[%clk 0:01:50.9]} 14... Ba5 {[%clk 0:02:23.8]} 15.
Ng5 {[%clk 0:01:42]} 15... Bxa2 {[%clk 0:02:22.8]} 16. Bxh7+ {[%clk 0:01:30.7]}
16... Kh8 {[%clk 0:02:22.6]} 17. Bd3 {[%clk 0:01:31.2]} 17... Bb6 {[%clk
0:02:06.9]} 18. Bf4 {[%clk 0:01:29.8]} 18... Na5 {[%clk 0:02:00.9]} 19. Rxc7
{[%clk 0:01:29.7]} 19... Bxc7 {[%clk 0:01:58.3]} 20. Bxc7 {[%clk 0:01:30.6]}
20... Rd7 {[%clk 0:01:55.7]} 21. Bxa5 {[%clk 0:01:28.4]} 21... Rd5 {[%clk
0:01:49.4]} 22. Bd2 {[%clk 0:01:28.3]} 22... Kg8 {[%clk 0:01:43]} 23. h4 {[%clk
0:01:26.3]} 23... Rb8 {[%clk 0:01:40.9]} 24. Ra1 {[%clk 0:01:15.7]} 24... Rb1+
{[%clk 0:01:28.8]} 25. Rxb1 {[%clk 0:01:15.4]} 25... Bxb1 {[%clk 0:01:29.7]} 26.
Be3 {[%clk 0:01:11.2]} 26... a5 {[%clk 0:01:25.8]} 27. Bc4 {[%clk 0:01:11.5]}
27... Rd1+ {[%clk 0:01:23.5]} 28. Kh2 {[%clk 0:01:11.5]} 28... Bxc2 {[%clk
0:01:23.4]} 29. Bxf7+ {[%clk 0:01:11.5]} 29... Kh8 {[%clk 0:01:19.5]} 30. Bc4
{[%clk 0:01:00.8]} 30... a4 {[%clk 0:01:18.9]} 31. Nf7+ {[%clk 0:00:36.3]} 31...
Kh7 {[%clk 0:01:17.9]} 32. Ng5+ {[%clk 0:00:30.5]} 32... Kg6 {[%clk 0:01:14.9]}
33. g4 {[%clk 0:00:25.8]} 33... Bb3 {[%clk 0:01:11.9]} 34. h5+ {[%clk
0:00:25.1]} 34... Kf6 {[%clk 0:01:11.6]} 35. Ne4+ {[%clk 0:00:15.7]} 35... Ke5
{[%clk 0:01:08.6]} 36. Nc3 {[%clk 0:00:16.4]} 36... Rd8 {[%clk 0:00:47.4]} 37.
f4+ {[%clk 0:00:16.6]} 37... Kd6 {[%clk 0:00:42.3]} 38. Nxa4 {[%clk 0:00:17.1]}
38... Bxc4 {[%clk 0:00:37.7]} 39. Bd4 {[%clk 0:00:17.6]} 39... Rg8 {[%clk
0:00:30.4]} 40. Kg3 {[%clk 0:00:16.5]} 40... Kd5 {[%clk 0:00:29.6]} 41. Bb2
{[%clk 0:00:15.7]} 41... Bb3 {[%clk 0:00:28.4]} 42. Nc3+ {[%clk 0:00:15.7]}
42... Kc4 {[%clk 0:00:28.3]} 43. Ne2 {[%clk 0:00:16]} 43... Bd1 {[%clk 0:00:27]}
44. Nd4 {[%clk 0:00:14.4]} 44... Rb8 {[%clk 0:00:26.9]} 45. Ba1 {[%clk
0:00:09.8]} 45... Rb1 {[%clk 0:00:26.6]} 46. Nf5 {[%clk 0:00:09.6]} 46... Rxa1
{[%clk 0:00:25.4]} 47. Nxg7 {[%clk 0:00:09.4]} 47... Kd5 {[%clk 0:00:24.7]} 48.
h6 {[%clk 0:00:08.3]} 48... Bc2 {[%clk 0:00:24.3]} 49. f5 {[%clk 0:00:07.6]}
49... Rh1 {[%clk 0:00:23.3]} 50. g5 {[%clk 0:00:05.2]} 50... Ke5 {[%clk
0:00:23.6]} 51. f6 {[%clk 0:00:05.4]} 51... Bg6 {[%clk 0:00:23.7]} 52. Kg4
{[%clk 0:00:05.4]} 52... Rg1+ {[%clk 0:00:23.1]} 53. Kh4 {[%clk 0:00:05.8]}
53... Kf4 {[%clk 0:00:22.3]} 54. Ne6+ {[%clk 0:00:06.2]} 54... Kf3 {[%clk
0:00:18.8]} 55. Nd4+ {[%clk 0:00:06.2]} 55... Ke4 {[%clk 0:00:18.9]} 56. Ne2
{[%clk 0:00:06.1]} 56... Rg2 {[%clk 0:00:16.9]} 57. Nc3+ {[%clk 0:00:03.5]}
57... Kf3 {[%clk 0:00:14.8]} 58. Kh3 {[%clk 0:00:01.7]} 58... Bf5+ {[%clk
0:00:13.8]} 59. Kh4 {[%clk 0:00:02]} 59... Rh2# {[%clk 0:00:14.7]} 0-1

[Event "Early-Titled-Tuesday-Blitz-February-27-2024"]
[Site "Chess.com"]
[Date "2024.02.27"]
[Round "2"]
[White "Genghis_K"]
[Black "GaiozNigalidze"]
[Result "0-1"]
[WhiteElo "2940"]
[BlackElo "2634"]
[TimeControl "180+1"]
[EndTime "8:18:09 PST"]
[Termination "GaiozNigalidze won on time"]

1. e4 {[%clk 0:02:26.9]} 1... c5 {[%clk 0:02:58]} 2. Nf3 {[%clk 0:02:27.6]} 2...
d6 {[%clk 0:02:54.8]} 3. Bb5+ {[%clk 0:02:27.8]} 3... Bd7 {[%clk 0:02:53.3]} 4.
Bxd7+ {[%clk 0:02:24.6]} 4... Qxd7 {[%clk 0:02:53.1]} 5. O-O {[%clk 0:02:23.4]}
5... Nf6 {[%clk 0:02:53]} 6. Qe2 {[%clk 0:02:23.1]} 6... Nc6 {[%clk 0:02:49.5]}
7. c3 {[%clk 0:02:23.3]} 7... e6 {[%clk 0:02:49.4]} 8. d4 {[%clk 0:02:20]} 8...
cxd4 {[%clk 0:02:46.9]} 9. cxd4 {[%clk 0:02:20.9]} 9... d5 {[%clk 0:02:47]} 10.
e5 {[%clk 0:02:11.3]} 10... Ne4 {[%clk 0:02:46.2]} 11. Nbd2 {[%clk 0:02:11.4]}
11... Nxd2 {[%clk 0:02:45.6]} 12. Bxd2 {[%clk 0:02:12.3]} 12... Bb4 {[%clk
0:02:45.6]} 13. Bf4 {[%clk 0:01:57.8]} 13... O-O {[%clk 0:02:39.8]} 14. h4
{[%clk 0:01:51.6]} 14... Rfc8 {[%clk 0:02:36.5]} 15. g3 {[%clk 0:01:39.9]} 15...
Bf8 {[%clk 0:02:30.7]} 16. Kg2 {[%clk 0:01:39.7]} 16... a6 {[%clk 0:02:22.4]}
17. Rac1 {[%clk 0:01:34.6]} 17... Na5 {[%clk 0:02:15.7]} 18. Qd3 {[%clk
0:01:28]} 18... h6 {[%clk 0:02:06.5]} 19. h5 {[%clk 0:01:20.9]} 19... Rxc1
{[%clk 0:02:05.4]} 20. Rxc1 {[%clk 0:01:20.6]} 20... Rc8 {[%clk 0:02:04.5]} 21.
g4 {[%clk 0:01:19]} 21... Rxc1 {[%clk 0:01:57.2]} 22. Bxc1 {[%clk 0:01:19.9]}
22... Qb5 {[%clk 0:01:56.4]} 23. Qxb5 {[%clk 0:01:09.5]} 23... axb5 {[%clk
0:01:55.3]} 24. Ne1 {[%clk 0:01:05.7]} 24... Nc6 {[%clk 0:01:43.6]} 25. Nc2
{[%clk 0:01:04.3]} 25... Be7 {[%clk 0:01:39.9]} 26. f4 {[%clk 0:01:03.7]} 26...
f6 {[%clk 0:01:32.4]} 27. Kf3 {[%clk 0:01:01.8]} 27... Kf7 {[%clk 0:01:27.1]}
28. Bd2 {[%clk 0:00:48.8]} 28... Bf8 {[%clk 0:01:25.3]} 29. Ke2 {[%clk
0:00:35.4]} 29... Be7 {[%clk 0:01:20.4]} 30. Kd3 {[%clk 0:00:35.5]} 30... f5
{[%clk 0:00:58.6]} 31. Ne3 {[%clk 0:00:23.8]} 31... fxg4 {[%clk 0:00:43.3]} 32.
Nxg4 {[%clk 0:00:24.7]} 32... Bh4 {[%clk 0:00:43.4]} 33. a3 {[%clk 0:00:20]}
33... Ne7 {[%clk 0:00:43]} 34. Ne3 {[%clk 0:00:15.9]} 34... Bf2 {[%clk
0:00:42.7]} 35. Nd1 {[%clk 0:00:15.4]} 35... Bg3 {[%clk 0:00:38.6]} 36. Nc3
{[%clk 0:00:15.6]} 36... g6 {[%clk 0:00:31.9]} 37. hxg6+ {[%clk 0:00:16.5]}
37... Kxg6 {[%clk 0:00:31.9]} 38. Nxb5 {[%clk 0:00:16.6]} 38... h5 {[%clk
0:00:32.1]} 39. Ke2 {[%clk 0:00:16.3]} 39... Nf5 {[%clk 0:00:20.4]} 40. Kf3
{[%clk 0:00:16.2]} 40... h4 {[%clk 0:00:19.1]} 41. Bc3 {[%clk 0:00:12.1]} 41...
h3 {[%clk 0:00:19]} 42. Nd6 {[%clk 0:00:09.8]} 42... h2 {[%clk 0:00:19.1]} 43.
Kg2 {[%clk 0:00:10.4]} 43... Ne3+ {[%clk 0:00:19.2]} 44. Kh1 {[%clk 0:00:03.2]}
44... Ng4 {[%clk 0:00:19]} 45. f5+ {[%clk 0:00:02.8]} 45... exf5 {[%clk
0:00:16.7]} 46. Be1 {[%clk 0:00:03.4]} 46... Bxe1 {[%clk 0:00:16.5]} 47. e6
{[%clk 0:00:04.3]} 47... Bg3 {[%clk 0:00:15.5]} 48. e7 {[%clk 0:00:04.8]} 48...
Nf2+ {[%clk 0:00:15.4]} 49. Kg2 {[%clk 0:00:05.5]} 49... h1=Q+ {[%clk 0:00:09]}
50. Kxg3 {[%clk 0:00:06.2]} 50... Ne4+ {[%clk 0:00:08.8]} 51. Kf4 {[%clk
0:00:01.3]} 51... Nxd6 {[%clk 0:00:08.3]} 52. Ke5 {[%clk 0:00:02.1]} 52... Ne8
{[%clk 0:00:07.7]} 0-1

[Event "Early-Titled-Tuesday-Blitz-February-27-2024"]
[Site "Chess.com"]
[Date "2024.02.27"]
[Round "2"]
[White "DefiantChair"]
[Black "Sina_Movahed"]
[Result "0-1"]
[WhiteElo "2609"]
[BlackElo "2932"]
[TimeControl "180+1"]
[EndTime "8:18:13 PST"]
[Termination "Sina_Movahed won by resignation"]

1. e4 {[%clk 0:03:00.9]} 1... c5 {[%clk 0:02:54.2]} 2. Nf3 {[%clk 0:03:00.7]}
2... d6 {[%clk 0:02:54.1]} 3. d4 {[%clk 0:03:01.4]} 3... cxd4 {[%clk 0:02:55]}
4. Nxd4 {[%clk 0:03:02]} 4... Nf6 {[%clk 0:02:55.2]} 5. Nc3 {[%clk 0:03:02.2]}
5... g6 {[%clk 0:02:55.7]} 6. f3 {[%clk 0:03:00.4]} 6... a6 {[%clk 0:02:54.1]}
7. Be3 {[%clk 0:02:56.5]} 7... h5 {[%clk 0:02:52.8]} 8. Qd2 {[%clk 0:02:51.8]}
8... Nbd7 {[%clk 0:02:52.6]} 9. O-O-O {[%clk 0:02:49.6]} 9... b5 {[%clk
0:02:52.5]} 10. Nd5 {[%clk 0:02:49.6]} 10... Bb7 {[%clk 0:02:52.3]} 11. Nxf6+
{[%clk 0:02:48.3]} 11... Nxf6 {[%clk 0:02:53.2]} 12. h4 {[%clk 0:02:48.1]} 12...
Bg7 {[%clk 0:02:52.7]} 13. Kb1 {[%clk 0:02:47.7]} 13... Rc8 {[%clk 0:02:45.8]}
14. Nb3 {[%clk 0:02:47.6]} 14... Qc7 {[%clk 0:02:42.5]} 15. Na5 {[%clk
0:02:44.2]} 15... Bxe4 {[%clk 0:02:11.1]} 16. fxe4 {[%clk 0:02:32.4]} 16... Nxe4
{[%clk 0:02:09]} 17. Bxb5+ {[%clk 0:02:05.4]} 17... axb5 {[%clk 0:02:08.6]} 18.
Qd3 {[%clk 0:02:05.3]} 18... Nc3+ {[%clk 0:02:03.2]} 19. bxc3 {[%clk 0:02:04.1]}
19... Qxa5 {[%clk 0:02:04.1]} 20. Bd4 {[%clk 0:02:01.8]} 20... O-O {[%clk
0:01:59.3]} 21. Bxg7 {[%clk 0:02:01.1]} 21... Kxg7 {[%clk 0:02:00.2]} 22. Rhe1
{[%clk 0:01:08.5]} 22... Rfe8 {[%clk 0:01:46.6]} 23. Qd4+ {[%clk 0:01:08.1]}
23... e5 {[%clk 0:01:40]} 24. Qxd6 {[%clk 0:01:05.6]} 24... Qxc3 {[%clk
0:01:39]} 25. Re2 {[%clk 0:01:02.2]} 25... Rcd8 {[%clk 0:01:21.2]} 26. Qxd8
{[%clk 0:01:00.2]} 26... Rxd8 {[%clk 0:01:22.1]} 27. Rxd8 {[%clk 0:01:00]} 27...
Qb4+ {[%clk 0:01:21.9]} 28. Kc1 {[%clk 0:00:57.2]} 28... Qxh4 {[%clk 0:01:18.9]}
29. Rd5 {[%clk 0:00:57.2]} 29... Qf4+ {[%clk 0:01:17.1]} 30. Kd1 {[%clk
0:00:50.5]} 30... Qf1+ {[%clk 0:01:08.1]} 31. Kd2 {[%clk 0:00:50.6]} 31... Qf4+
{[%clk 0:01:07.1]} 32. Kd1 {[%clk 0:00:50.7]} 32... b4 {[%clk 0:01:05.6]} 33.
Rdxe5 {[%clk 0:00:47.6]} 33... Qd4+ {[%clk 0:01:05.6]} 34. Ke1 {[%clk
0:00:46.8]} 34... Qa1+ {[%clk 0:01:05.5]} 35. Kf2 {[%clk 0:00:46.8]} 35... Qxa2
{[%clk 0:01:06]} 36. R5e4 {[%clk 0:00:38.8]} 36... Qb2 {[%clk 0:01:04.9]} 37.
Kg1 {[%clk 0:00:33.7]} 37... f5 {[%clk 0:01:03.3]} 38. Re7+ {[%clk 0:00:29.5]}
38... Kh6 {[%clk 0:01:03.3]} 39. Kh2 {[%clk 0:00:27.7]} 39... Qd4 {[%clk
0:01:01.2]} 40. R7e3 {[%clk 0:00:26]} 40... h4 {[%clk 0:01:01.2]} 41. Rb3 {[%clk
0:00:20.6]} 41... Kh5 {[%clk 0:01:00]} 42. Ree3 {[%clk 0:00:17.7]} 42... g5
{[%clk 0:00:59.3]} 43. Kh1 {[%clk 0:00:17.4]} 43... f4 {[%clk 0:00:49]} 44. Red3
{[%clk 0:00:17.4]} 44... Qc4 {[%clk 0:00:47.5]} 45. Rd2 {[%clk 0:00:13.8]} 45...
Qf1+ {[%clk 0:00:46.5]} 46. Kh2 {[%clk 0:00:13.9]} 46... g4 {[%clk 0:00:47]} 47.
Rd5+ {[%clk 0:00:14.2]} 47... Kg6 {[%clk 0:00:47.2]} 48. Rxb4 {[%clk 0:00:12.7]}
48... h3 {[%clk 0:00:21.1]} 49. Rb6+ {[%clk 0:00:07.2]} 49... Kf7 {[%clk
0:00:21.4]} 50. Rd2 {[%clk 0:00:05.9]} 50... hxg2 {[%clk 0:00:20]} 51. Rb7+
{[%clk 0:00:03.6]} 51... Ke6 {[%clk 0:00:19.9]} 52. Rb6+ {[%clk 0:00:04.2]}
52... Ke5 {[%clk 0:00:19.6]} 53. Rxg2 {[%clk 0:00:04.9]} 53... g3+ {[%clk
0:00:19.8]} 54. Rxg3 {[%clk 0:00:04.6]} 54... fxg3+ {[%clk 0:00:20.7]} 55. Kxg3
{[%clk 0:00:05.5]} 55... Qg1+ {[%clk 0:00:21.3]} 0-1

[Event "Early-Titled-Tuesday-Blitz-February-27-2024"]
[Site "Chess.com"]
[Date "2024.02.27"]
[Round "2"]
[White "Fandorine"]
[Black "ketster"]
[Result "1-0"]
[WhiteElo "2918"]
[BlackElo "2606"]
[TimeControl "180+1"]
[EndTime "8:18:14 PST"]
[Termination "Fandorine won on time"]

1. e4 {[%clk 0:03:00.9]} 1... c5 {[%clk 0:02:54.6]} 2. Nf3 {[%clk 0:03:00]} 2...
Nf6 {[%clk 0:02:54]} 3. e5 {[%clk 0:02:58.6]} 3... Nd5 {[%clk 0:02:53.9]} 4. c3
{[%clk 0:02:55.9]} 4... d6 {[%clk 0:02:50.3]} 5. Bc4 {[%clk 0:02:51.8]} 5... e6
{[%clk 0:02:32.2]} 6. exd6 {[%clk 0:02:44.4]} 6... Bxd6 {[%clk 0:02:27.1]} 7. d4
{[%clk 0:02:44]} 7... O-O {[%clk 0:02:16.4]} 8. dxc5 {[%clk 0:02:37.8]} 8...
Bxc5 {[%clk 0:02:17.3]} 9. O-O {[%clk 0:02:38]} 9... Nc6 {[%clk 0:02:15.1]} 10.
Qe2 {[%clk 0:02:35.5]} 10... Qc7 {[%clk 0:02:10.8]} 11. Qe4 {[%clk 0:02:22.2]}
11... Nf6 {[%clk 0:01:57.3]} 12. Qh4 {[%clk 0:02:19.2]} 12... e5 {[%clk
0:01:30.9]} 13. Bg5 {[%clk 0:02:13]} 13... Be7 {[%clk 0:01:29.4]} 14. Bd3 {[%clk
0:02:08.2]} 14... h6 {[%clk 0:01:18.8]} 15. Bxf6 {[%clk 0:01:29.2]} 15... Bxf6
{[%clk 0:01:19.7]} 16. Qa4 {[%clk 0:01:27.5]} 16... Be6 {[%clk 0:01:10]} 17.
Nbd2 {[%clk 0:01:24.1]} 17... Rad8 {[%clk 0:01:09.3]} 18. Qc2 {[%clk 0:01:15.3]}
18... Be7 {[%clk 0:01:08.1]} 19. Bh7+ {[%clk 0:01:13.5]} 19... Kh8 {[%clk
0:01:07.9]} 20. Bf5 {[%clk 0:01:14.3]} 20... Qc8 {[%clk 0:01:01]} 21. Bxe6
{[%clk 0:01:09.3]} 21... Qxe6 {[%clk 0:01:01.9]} 22. Qb3 {[%clk 0:01:08]} 22...
Qg6 {[%clk 0:00:43]} 23. Rfe1 {[%clk 0:00:59.2]} 23... Bg5 {[%clk 0:00:32.6]}
24. Nxg5 {[%clk 0:00:33]} 24... Rxd2 {[%clk 0:00:30.5]} 25. Nf3 {[%clk
0:00:30.6]} 25... Rc2 {[%clk 0:00:14.2]} 26. h3 {[%clk 0:00:08.6]} 26... Rd8
{[%clk 0:00:11]} 27. Rac1 {[%clk 0:00:05.3]} 27... Rxc1 {[%clk 0:00:10.6]} 28.
Rxc1 {[%clk 0:00:06.2]} 28... b6 {[%clk 0:00:09.6]} 29. Re1 {[%clk 0:00:03.6]}
29... Qd6 {[%clk 0:00:07.8]} 30. Qa4 {[%clk 0:00:03.4]} 30... f6 {[%clk
0:00:06.3]} 31. Qc4 {[%clk 0:00:03.9]} 31... Ne7 {[%clk 0:00:06.3]} 32. Qe4
{[%clk 0:00:04.4]} 32... Qd5 {[%clk 0:00:05]} 33. Qxd5 {[%clk 0:00:04.6]} 33...
Rxd5 {[%clk 0:00:05.5]} 34. Kf1 {[%clk 0:00:04.8]} 34... Kg8 {[%clk 0:00:05.2]}
35. g4 {[%clk 0:00:05.4]} 35... Kf7 {[%clk 0:00:05.5]} 36. Rc1 {[%clk
0:00:04.3]} 36... Ng6 {[%clk 0:00:05.8]} 37. Ne1 {[%clk 0:00:03.5]} 37... Nf4
{[%clk 0:00:06]} 38. h4 {[%clk 0:00:03.9]} 38... g6 {[%clk 0:00:03.7]} 39. f3
{[%clk 0:00:04.4]} 39... f5 {[%clk 0:00:04.1]} 40. c4 {[%clk 0:00:04]} 40... Rd2
{[%clk 0:00:04.2]} 41. gxf5 {[%clk 0:00:03.8]} 41... gxf5 {[%clk 0:00:04.4]} 42.
Rc2 {[%clk 0:00:04.2]} 42... Rd1 {[%clk 0:00:03.8]} 43. Kf2 {[%clk 0:00:04.5]}
43... Ke6 {[%clk 0:00:04.4]} 44. b4 {[%clk 0:00:04.3]} 44... Kd6 {[%clk
0:00:04]} 45. c5+ {[%clk 0:00:03.8]} 45... bxc5 {[%clk 0:00:04.6]} 46. bxc5+
{[%clk 0:00:03.2]} 46... Kc6 {[%clk 0:00:05.2]} 47. Rc4 {[%clk 0:00:03.2]} 47...
Ne6 {[%clk 0:00:03.8]} 48. Ra4 {[%clk 0:00:03.1]} 48... Nxc5 {[%clk 0:00:03.7]}
49. Rxa7 {[%clk 0:00:03.7]} 49... Rd2+ {[%clk 0:00:03.7]} 50. Kf1 {[%clk
0:00:04.1]} 50... e4 {[%clk 0:00:03.6]} 51. fxe4 {[%clk 0:00:04]} 51... Nxe4
{[%clk 0:00:03.1]} 52. Rh7 {[%clk 0:00:03.6]} 52... Rxa2 {[%clk 0:00:01.9]} 53.
Rxh6+ {[%clk 0:00:03.4]} 53... Kd5 {[%clk 0:00:02.7]} 54. Ng2 {[%clk 0:00:02.9]}
54... Ke5 {[%clk 0:00:02]} 55. Ne1 {[%clk 0:00:03]} 55... Rb2 {[%clk 0:00:01.7]}
56. Rg6 {[%clk 0:00:03.3]} 1-0